fUST/lending_fUST_20240203
["ID","MTS","AMOUNT","RATE_DAILY","PERIOD"]
[313216811,1706964638415,-500.0,0.00024883,2]
[313216814,1706964638426,-250.0,0.00024883,2]
[313216816,1706964638435,-258.06891963,0.00024883,2]
[313216818,1706964638444,-500.0,0.00024883,2]
[313216820,1706964638453,-500.0,0.00024883,2]
[313216822,1706964638462,-388.58437497,0.00024883,2]
[313216824,1706964638471,-500.0,0.00024883,2]
[313216826,1706964638481,-500.0,0.00024883,2]
[313216827,1706964638490,-500.0,0.00024883,2]
[313216829,1706964638500,-500.0,0.00024883,2]
[313216831,1706964638509,-500.0,0.00024883,2]
[313216833,1706964638518,-500.0,0.00024883,2]
[313216835,1706964638528,-500.0,0.00024883,2]
[313216837,1706964638537,-500.0,0.00024883,2]
[313216839,1706964638546,-391.0,0.00024883,2]
[313216841,1706964638554,-500.0,0.00024883,2]
[313216843,1706964638563,-500.0,0.00024883,2]
[313216845,1706964638574,-500.0,0.00024883,2]
[313216848,1706964638583,-500.0,0.00024883,2]
[313216849,1706964638592,-500.0,0.00024883,2]
[313216851,1706964638601,-37010.93007233,0.00024884,2]
[313216854,1706964638612,-2516.78210016,0.000249,2]
[313216856,1706964638621,-14590.51998326,0.00024901,2]
[313216858,1706964638630,-458.52623537,0.00024901,2]
[313216860,1706964638639,-335.29979556,0.00025,2]
[313216862,1706964638648,-168.281818,0.0002506,2]
[313216864,1706964638657,-194.69220013,0.00025281,2]
[313216866,1706964638666,-156.8872007,0.00025287,2]
[313216867,1706964638675,-155.35403325,0.00025287,2]
[313216869,1706964638683,-243.48263359,0.00025287,2]
[313216871,1706964638692,-379.00530314,0.00025287,7]
[313216873,1706964638701,-200.0,0.00025287,2]
[313216875,1706964638710,-1172.08009846,0.00025287,2]
[313216877,1706964638719,-2012.78803285,0.00025287,2]
[313216880,1706964638730,-230.88142086,0.00025287,2]
[313216881,1706964638742,-155.72853088,0.00025287,2]
[313216884,1706964638751,-591.99312524,0.00025287,2]
[313216886,1706964638760,-329.63381135,0.00025288,2]
[313216887,1706964638769,-53883.25832283,0.00025289,2]
[313216890,1706964638779,-170.31395513,0.00025471,2]
[313216892,1706964638788,-2519.9842313,0.00025571,2]
[313216893,1706964638797,-918.07862575,0.00026027,4]
[313216895,1706964638806,-153.0,0.00026027,2]
[313216897,1706964638815,-153.0,0.00026027,2]
[313216899,1706964638826,-153.0,0.00026078,2]
[313216901,1706964638835,-157.5348743,0.00026849,2]
[313216903,1706964638844,-199.7424242,0.00026849,2]
[313216905,1706964638853,-306.0,0.00026849,2]
[313216907,1706964638863,-295.4642657,0.00026878,2]
[313216909,1706964638872,-153.0,0.00026878,2]
[313216911,1706964638881,-280.0,0.00026895,15]
[313216913,1706964638890,-48933.02600869,0.000271,2]
[313216915,1706964638899,-319.02827312,0.00027297,2]
[313216917,1706964638909,-1651.31078755,0.00027397,2]
[313216918,1706964638918,-155.02015262,0.00027397,2]
[313216920,1706964638927,-155.02015262,0.00027397,2]
[313216922,1706964638936,-500.0,0.00027397,2]
[313216924,1706964638945,-500.0,0.00027397,2]
[313216926,1706964638954,-500.0,0.00027397,2]
[313216928,1706964638963,-504.73072043,0.00027397,2]
[313216930,1706964638972,-500.0,0.00027397,2]
[313216932,1706964638981,-500.0,0.00027397,2]
[313216934,1706964638990,-501.37259724,0.00027397,2]
[313216936,1706964638999,-500.0,0.00027397,2]
[313216938,1706964639008,-512.06570693,0.00027397,2]
[313216940,1706964639017,-505.91505518,0.00027397,2]
[313216942,1706964639025,-500.0,0.00027397,2]
[313216944,1706964639035,-500.0,0.00027397,2]
[313216945,1706964639044,-500.0,0.00027397,2]
[313216947,1706964639053,-500.0,0.00027397,2]
[313216949,1706964639062,-500.0,0.00027397,2]
[313216951,1706964639071,-503.63711727,0.00027397,2]
[313216952,1706964639080,-500.0,0.00027397,2]
[313216953,1706964639089,-500.0,0.00027397,2]
[313216954,1706964639098,-500.0,0.00027397,2]
[313216955,1706964639107,-516.25072468,0.00027397,2]
[313216956,1706964639116,-500.0,0.00027397,2]
[313216957,1706964639125,-455.2446632,0.00027397,2]
[313216958,1706964639134,-301.93124772,0.00027397,2]
[313216959,1706964639143,-503.75418424,0.00027397,2]
[313216960,1706964639152,-505.61402559,0.00027397,7]
[313216961,1706964639161,-765.43990857,0.00027397,2]
[313216962,1706964639170,-504.61789593,0.00027397,2]
[313216964,1706964639179,-500.0,0.00027397,2]
[313216966,1706964639188,-308.37268485,0.00027397,2]
[313216969,1706964639197,-234.9472934,0.00027397,2]
[313216972,1706964639206,-501.56367019,0.00027397,2]
[313216975,1706964639215,-500.0,0.00027397,2]
[313216978,1706964639224,-500.0,0.00027397,2]
[313216981,1706964639233,-500.0,0.00027397,2]
[313216984,1706964639242,-500.0,0.00027397,2]
[313216987,1706964639251,-500.0,0.00027397,2]
[313216990,1706964639261,-151.0,0.00027397,2]
[313216993,1706964639270,-504.99545555,0.00027397,2]
[313216996,1706964639280,-155.02046238,0.00027397,2]
[313216999,1706964639289,-151.0,0.00027397,2]
[313217002,1706964639297,-500.0,0.00027397,2]
[313217005,1706964639306,-417.62531425,0.00027397,2]
[313217008,1706964639315,-506.59111545,0.00027397,2]
[313217010,1706964639324,-500.0,0.00027397,2]
[313217013,1706964639333,-552.69410233,0.00027397,2]
[313217016,1706964639343,-500.0,0.00027397,2]
[313217018,1706964639353,-500.0,0.00027397,2]
[313217021,1706964639362,-500.0,0.00027397,2]
[313217024,1706964639371,-500.0,0.00027397,2]
[313217026,1706964639380,-525.85,0.00027397,2]
[313217028,1706964639388,-3736.1,0.00027397,2]
[313217030,1706964639397,-500.0,0.00027397,2]
[313217032,1706964639406,-948.33,0.00027397,2]
[313217034,1706964639415,-567.69,0.00027397,2]
[313217036,1706964639424,-500.0,0.00027397,2]
[313217038,1706964639433,-500.0,0.00027397,2]
[313217040,1706964639442,-500.0,0.00027397,2]
[313217042,1706964639452,-500.0,0.00027397,2]
[313217044,1706964639461,-500.0,0.00027397,2]
[313217045,1706964639471,-474.96707827,0.00027397,2]
[313217047,1706964639481,-503.93231267,0.00027397,2]
[313217048,1706964639490,-508.84074128,0.00027397,2]
[313217050,1706964639500,-500.0,0.00027397,2]
[313217052,1706964639509,-500.0,0.00027397,2]
[313217054,1706964639518,-500.0,0.00027397,2]
[313217056,1706964639527,-664.926863,0.00027397,2]
[313217058,1706964639537,-504.62288054,0.00027397,2]
[313217060,1706964639545,-664.926863,0.00027397,2]
[313217062,1706964639554,-500.0,0.00027397,2]
[313217064,1706964639564,-881.73,0.00027397,2]
[313217066,1706964639573,-500.0,0.00027397,2]
[313217068,1706964639581,-505.88117629,0.00027397,2]
[313217070,1706964639590,-513.93419891,0.00027397,2]
[313217072,1706964639599,-500.0,0.00027397,2]
[313217074,1706964639608,-500.0,0.00027397,2]
[313217076,1706964639618,-1661.55,0.00027397,2]
[313217078,1706964639628,-506.1910347,0.00027397,2]
[313217080,1706964639637,-500.0,0.00027397,2]
[313217081,1706964639646,-500.0,0.00027397,2]
[313217082,1706964639655,-1481.32,0.00027397,2]
[313217083,1706964639665,-500.0,0.00027397,2]
[313217084,1706964639673,-549.09261835,0.00027397,2]
[313217085,1706964639684,-278.60824485,0.00027397,2]
[313217086,1706964639777,-500.0,0.00027397,2]
[313217087,1706964639786,-1996.8,0.00027397,2]
[313217088,1706964639796,-500.0,0.00027397,2]
[313217089,1706964639805,-525.34101276,0.00027397,2]
[313217090,1706964639815,-500.0,0.00027397,2]
[313217091,1706964639824,-13497.59,0.00027397,2]
[313217092,1706964639834,-512.53,0.00027397,2]
[313217093,1706964639844,-500.0,0.00027397,2]
[313217094,1706964639853,-500.0,0.00027397,2]
[313217095,1706964639862,-503.81745858,0.00027397,2]
[313217096,1706964639871,-3116.61,0.00027397,2]
[313217097,1706964639880,-500.0,0.00027397,2]
[313217098,1706964639889,-867.45,0.00027397,2]
[313217099,1706964639898,-600.0,0.000275,2]
[313217100,1706964639907,-2040.50242111,0.00027668,2]
[313217102,1706964639916,-688.96127348,0.00027668,2]
[313217104,1706964639926,-565.60551711,0.00027668,2]
[313217107,1706964639935,-303.83245252,0.00027668,2]
[313217109,1706964639945,-326.04786116,0.00027668,2]
[313217111,1706964639954,-465.90513201,0.0002767,2]
[313217112,1706964639963,-259.0506465,0.00027671,3]
[313217113,1706964639972,-2088.24989888,0.00027671,2]
[313217114,1706964639982,-1012.27629002,0.00027671,2]
[313217115,1706964639990,-300.0,0.00027671,2]
[313217116,1706964640000,-1829.31848174,0.00027671,2]
[313217117,1706964640009,-1111.36041845,0.00027671,2]
[313217118,1706964640018,-500.0,0.00027671,2]
[313217119,1706964640027,-500.0,0.00027671,2]
[313217120,1706964640036,-316.44854787,0.00027671,2]
[313217121,1706964640045,-500.0,0.00027671,2]
[313217122,1706964640055,-500.0,0.00027671,2]
[313217123,1706964640064,-500.0,0.00027671,2]
[313217124,1706964640072,-187.62398123,0.00027671,2]
[313217126,1706964640081,-500.0,0.00027671,2]
[313217128,1706964640090,-500.0,0.00027671,2]
[313217129,1706964640099,-500.0,0.00027671,2]
[313217130,1706964640110,-151.0,0.00027671,2]
[313217131,1706964640119,-151.0,0.00027671,2]
[313217132,1706964640129,-500.0,0.00027671,2]
[313217133,1706964640138,-500.0,0.00027671,2]
[313217134,1706964640147,-505.08531389,0.00027671,2]
[313217135,1706964640156,-500.0,0.00027671,2]
[313217136,1706964640165,-500.0,0.00027671,2]
[313217137,1706964640175,-500.0,0.00027671,2]
[313217138,1706964640183,-151.0,0.00027671,2]
[313217139,1706964640193,-151.0,0.00027671,2]
[313217140,1706964640201,-194.057992,0.00027671,2]
[313217141,1706964640210,-500.0,0.00027671,2]
[313217142,1706964640219,-500.0,0.00027671,2]
[313217143,1706964640228,-500.0,0.00027671,2]
[313217144,1706964640236,-500.0,0.00027671,2]
[313217145,1706964640245,-525.85,0.00027671,2]
[313217146,1706964640254,-3736.1,0.00027671,2]
[313217147,1706964640264,-500.0,0.00027671,2]
[313217148,1706964640273,-948.33,0.00027671,2]
[313217149,1706964640282,-567.69,0.00027671,2]
[313217150,1706964640291,-387.8,0.00027671,2]
[313217151,1706964640300,-599.87966106,0.00027671,2]
[313217152,1706964640309,-500.0,0.00027671,2]
[313217153,1706964640319,-452.68648476,0.00027671,2]
[313217154,1706964640328,-500.0,0.00027671,2]
[313217155,1706964640337,-500.0,0.00027671,2]
[313217156,1706964640347,-500.0,0.00027671,2]
[313217157,1706964640358,-500.0,0.00027671,2]
[313217158,1706964640368,-881.73,0.00027671,2]
[313217159,1706964640376,-500.0,0.00027671,2]
[313217160,1706964640387,-500.0,0.00027671,2]
[313217161,1706964640396,-1661.55,0.00027671,2]
[313217162,1706964640405,-500.0,0.00027671,2]
[313217163,1706964640414,-500.0,0.00027671,2]
[313217164,1706964640425,-1481.32,0.00027671,2]
[313217165,1706964640434,-500.0,0.00027671,2]
[313217166,1706964640445,-1996.8,0.00027671,2]
[313217167,1706964640454,-500.0,0.00027671,2]
[313217168,1706964640464,-500.0,0.00027671,2]
[313217169,1706964640474,-13497.59,0.00027671,2]
[313217170,1706964640483,-512.53,0.00027671,2]
[313217171,1706964640492,-500.0,0.00027671,2]
[313217172,1706964640501,-500.0,0.00027671,2]
[313217173,1706964640513,-3116.61,0.00027671,2]
[313217174,1706964640525,-867.45,0.00027671,2]
[313217175,1706964640534,-1000.0,0.000278,8]
[313217176,1706964640543,-1771.1328817,0.00027943,2]
[313217177,1706964640552,-188.76031181,0.00027943,2]
[313217178,1706964640562,-381.96379396,0.00027944,2]
[313217179,1706964640571,-2106.9014739,0.00027944,2]
[313217180,1706964640581,-3396.51812022,0.00027944,2]
[313217181,1706964640590,-1000.0,0.00027944,3]
[313217182,1706964640599,-1023.88339212,0.00027944,3]
[313217183,1706964640609,-664.926863,0.00027944,2]
[313217184,1706964640619,-664.926863,0.00027944,2]
[313217185,1706964640630,-500.0,0.00027945,2]
[313217186,1706964640640,-500.0,0.00027945,2]
[313217187,1706964640651,-500.0,0.00027945,2]
[313217188,1706964640660,-500.0,0.00027945,2]
[313217189,1706964640669,-164.379198,0.00027945,2]
[313217190,1706964640678,-151.0,0.00027945,2]
[313217191,1706964640687,-500.0,0.00027945,2]
[313217192,1706964640696,-500.0,0.00027945,2]
[313217193,1706964640706,-500.0,0.00027945,2]
[313217194,1706964640715,-500.0,0.00027945,2]
[313217196,1706964640725,-574.18868617,0.00027945,2]
[313217198,1706964640735,-151.0,0.00027945,2]
[313217200,1706964640744,-151.0,0.00027945,2]
[313217202,1706964640754,-500.0,0.00027945,2]
[313217204,1706964640763,-500.0,0.00027945,2]
[313217206,1706964640772,-525.85,0.00027945,2]
[313217208,1706964640782,-3736.1,0.00027945,2]
[313217210,1706964640791,-500.0,0.00027945,2]
[313217211,1706964640800,-948.33,0.00027945,2]
[313217212,1706964640810,-567.69,0.00027945,2]
[313217213,1706964640820,-500.0,0.00027945,2]
[313217214,1706964640829,-500.0,0.00027945,2]
[313217216,1706964640838,-500.0,0.00027945,2]
[313217218,1706964640847,-500.0,0.00027945,2]
[313217220,1706964640857,-881.73,0.00027945,2]
[313217222,1706964640866,-500.0,0.00027945,2]
[313217224,1706964640875,-500.0,0.00027945,2]
[313217226,1706964640884,-1661.55,0.00027945,2]
[313217228,1706964640893,-500.0,0.00027945,2]
[313217230,1706964640903,-500.0,0.00027945,2]
[313217232,1706964640912,-1481.32,0.00027945,2]
[313217234,1706964640921,-500.0,0.00027945,2]
[313217236,1706964640930,-1996.8,0.00027945,2]
[313217238,1706964640939,-500.0,0.00027945,2]
[313217240,1706964640948,-500.0,0.00027945,2]
[313217242,1706964640957,-13497.59,0.00027945,2]
[313217244,1706964640966,-512.53,0.00027945,2]
[313217245,1706964640975,-150.97208293,0.00027945,2]
[313217247,1706964640984,-3116.61,0.00027945,2]
[313217249,1706964640993,-867.45,0.00027945,2]
[313217251,1706964641002,-500.0,0.00027999,2]
[313217253,1706964641011,-161.80184815,0.00027999,2]
[313217255,1706964641020,-500.0,0.00027999,2]
[313217257,1706964641029,-500.0,0.00027999,2]
[313217259,1706964641038,-500.0,0.00027999,2]
[313217261,1706964641048,-558.71347367,0.00027999,2]
[313217263,1706964641057,-500.0,0.00027999,2]
[313217265,1706964641066,-500.0,0.00027999,2]
[313217267,1706964641075,-574.98359654,0.00027999,2]
[313217269,1706964641084,-500.0,0.00027999,2]
[313217271,1706964641093,-500.0,0.00027999,2]
[313217273,1706964641102,-212.68165572,0.00027999,2]
[313217275,1706964641111,-276.32961329,0.00027999,2]
[313217277,1706964641120,-500.0,0.00027999,2]
[313217279,1706964641130,-500.0,0.00027999,2]
[313217281,1706964641139,-606.66960683,0.00027999,2]
[313217283,1706964641148,-332.71269141,0.00027999,2]
[313217285,1706964641159,-450.0,0.00027999,2]
[313217287,1706964641168,-2500.0,0.00028,2]
[313217289,1706964641177,-600.0,0.00028,2]
[313217291,1706964641186,-51099.57217898,0.00028,2]
[313217293,1706964641195,-459.92906339,0.00028,3]
[313217295,1706964641205,-9301.52678065,0.00028,2]
[313217296,1706964641228,-55627.97262972,0.00028,2]
[313217298,1706964641237,-3000.0,0.00028,4]
[313217300,1706964641247,-245.0,0.00028,2]
[313217302,1706964641257,-151.0,0.00028,2]
[313217303,1706964641266,-151.0,0.00028,2]
[313217304,1706964641275,-664.926863,0.00028,2]
[313217305,1706964641285,-664.926863,0.00028,2]
[313217306,1706964641294,-664.926863,0.00028,2]
[313217307,1706964641303,-664.926863,0.00028,2]
[313217308,1706964641311,-620.00055112,0.00028066,2]
[313217309,1706964641320,-26672.88718647,0.00028123,2]
[313217310,1706964641329,-151.0,0.0002813,2]
[313217311,1706964641340,-500.0,0.00028219,2]
[313217312,1706964641349,-500.0,0.00028219,2]
[313217313,1706964641358,-292.63524484,0.00028219,2]
[313217314,1706964641370,-151.0,0.00028219,2]
[313217315,1706964641379,-500.0,0.00028219,2]
[313217316,1706964641388,-525.85,0.00028219,2]
[313217317,1706964641397,-3736.1,0.00028219,2]
[313217318,1706964641406,-642.83,0.00028219,2]
[313217319,1706964641415,-948.33,0.00028219,2]
[313217320,1706964641424,-567.69,0.00028219,2]
[313217321,1706964641436,-325.05,0.00028219,2]
[313217322,1706964641447,-500.0,0.00028219,2]
[313217323,1706964641458,-500.0,0.00028219,2]
[313217324,1706964641467,-664.926863,0.00028219,2]
[313217325,1706964641476,-664.926863,0.00028219,2]
[313217326,1706964641486,-500.0,0.00028219,2]
[313217327,1706964641495,-881.73,0.00028219,2]
[313217328,1706964641504,-513.77484756,0.00028219,2]
[313217329,1706964641513,-500.0,0.00028219,2]
[313217330,1706964641522,-1661.55,0.00028219,2]
[313217331,1706964641532,-500.0,0.00028219,2]
[313217332,1706964641542,-1481.32,0.00028219,2]
[313217333,1706964641551,-577.98,0.00028219,2]
[313217334,1706964641560,-1996.8,0.00028219,2]
[313217335,1706964641569,-500.0,0.00028219,2]
[313217336,1706964641579,-500.0,0.00028219,2]
[313217337,1706964641588,-13497.59,0.00028219,2]
[313217338,1706964641597,-512.53,0.00028219,2]
[313217339,1706964641606,-3116.61,0.00028219,2]
[313217340,1706964641615,-867.45,0.00028219,2]
[313217341,1706964641625,-156.5099535,0.00028219,2]
[313217342,1706964641634,-153.0,0.00028219,2]
[313217343,1706964641642,-153.0,0.00028219,2]
[313217344,1706964641652,-150.763,0.00028382,2]
[313217345,1706964641661,-5000.0,0.0002843,5]
[313217346,1706964641670,-500.0,0.00028493,2]
[313217347,1706964641679,-500.0,0.00028493,2]
[313217348,1706964641689,-500.0,0.00028493,2]
[313217349,1706964641698,-525.85,0.00028493,2]
[313217350,1706964641707,-3736.1,0.00028493,2]
[313217351,1706964641716,-948.33,0.00028493,2]
[313217352,1706964641726,-567.69,0.00028493,2]
[313217353,1706964641739,-500.0,0.00028493,2]
[313217354,1706964641748,-540.04666505,0.00028493,2]
[313217355,1706964641757,-500.0,0.00028493,2]
[313217356,1706964641766,-881.73,0.00028493,2]
[313217357,1706964641776,-500.0,0.00028493,2]
[313217358,1706964641785,-1661.55,0.00028493,2]
[313217359,1706964641794,-500.0,0.00028493,2]
[313217360,1706964641803,-1481.32,0.00028493,2]
[313217361,1706964641812,-1996.8,0.00028493,2]
[313217362,1706964641822,-500.0,0.00028493,2]
[313217363,1706964641831,-500.0,0.00028493,2]
[313217364,1706964641840,-13497.59,0.00028493,2]
[313217365,1706964641849,-512.53,0.00028493,2]
[313217366,1706964641858,-3116.61,0.00028493,2]
[313217367,1706964641868,-867.45,0.00028493,2]
[313217368,1706964641877,-153.0,0.00028493,2]
[313217369,1706964641886,-399.4848484,0.00028493,2]
[313217370,1706964641895,-153.0,0.00028493,2]
[313217371,1706964641905,-153.0,0.00028493,2]
[313217372,1706964641913,-306.542544,0.00028493,2]
[313217373,1706964641922,-306.8078246,0.00028493,2]
[313217374,1706964641932,-153.873444,0.00028493,2]
[313217375,1706964641941,-154.000139,0.00028493,2]
[313217376,1706964641951,-600.0,0.000285,2]
[313217377,1706964641960,-319.02827306,0.00028697,2]
[313217378,1706964641969,-500.0,0.00028767,2]
[313217379,1706964641978,-500.0,0.00028767,2]
[313217380,1706964641988,-151.0,0.00028767,2]
[313217381,1706964641997,-500.0,0.00028767,2]
[313217382,1706964642007,-525.85,0.00028767,2]
[313217383,1706964642016,-3736.1,0.00028767,2]
[313217384,1706964642025,-948.33,0.00028767,2]
[313217385,1706964642034,-567.69,0.00028767,2]
[313217386,1706964642044,-500.0,0.00028767,2]
[313217387,1706964642134,-664.926863,0.00028767,2]
[313217388,1706964642143,-664.926863,0.00028767,2]
[313217389,1706964642153,-173.63,0.00028767,2]
[313217390,1706964642162,-881.73,0.00028767,2]
[313217391,1706964642171,-162.27543003,0.00028767,2]
[313217392,1706964642180,-1661.55,0.00028767,2]
[313217393,1706964642189,-614.58300089,0.00028767,2]
[313217395,1706964642198,-1481.32,0.00028767,2]
[313217397,1706964642207,-1996.8,0.00028767,2]
[313217399,1706964642216,-500.0,0.00028767,2]
[313217401,1706964642226,-13497.59,0.00028767,2]
[313217403,1706964642235,-512.53,0.00028767,2]
[313217405,1706964642244,-3116.61,0.00028767,2]
[313217406,1706964642253,-867.45,0.00028767,2]
[313217408,1706964642262,-1935.01724955,0.00028798,2]
[313217410,1706964642271,-156.9901161,0.00028798,2]
[313217412,1706964642280,-338.61078298,0.00028799,2]
[313217414,1706964642289,-1790.0364463,0.00028799,2]
[313217424,1706964642362,-992.64,0.00028799,2]
[313217425,1706964642375,-1536.28911083,0.00028799,2]
[313217426,1706964642384,-3004.71088917,0.000288,4]
[313217427,1706964642395,-999.37645,0.000288,4]
[313217428,1706964642407,-1981.13878291,0.000288,4]
[313217429,1706964642417,-311.72034305,0.000288,2]
[313217430,1706964642426,-1000.0,0.000289,12]
[313217431,1706964642436,-651.40188958,0.00028997,2]
[313217432,1706964642446,-623.90198777,0.00028997,2]
[313217433,1706964642455,-188.73696254,0.00028998,2]
[313217434,1706964642464,-254.21826336,0.00028998,2]
[313217436,1706964642474,-158.83,0.00028999,2]
[313217437,1706964642483,-158.83,0.00028999,2]
[313217438,1706964642492,-170.58,0.00028999,2]
[313217439,1706964642501,-170.59,0.00028999,2]
[313217440,1706964642510,-170.59,0.00028999,2]
[313217441,1706964642519,-170.58,0.00028999,2]
[313217443,1706964642528,-3685.45177079,0.00029,2]
[313217447,1706964642672,-302.8671087,0.00024874,3]
[313217448,1706964642683,-2124.39266606,0.00024874,3]
[313217449,1706964642695,-3262.37862934,0.00024874,3]
[313217457,1706964642757,-3054.48138819,0.00024874,3]
[313217469,1706964642871,-2008.59928713,0.00024874,3]
[313217472,1706964642882,-183.52092058,0.00024874,3]
[313217473,1706964642892,-3578.5052466,0.00029,2]
[313217491,1706964645852,-13305.321994,0.00029,2]
[313217579,1706965831911,-1017.12321481,0.00024149,2]
[313217582,1706965831921,-155.01860223,0.0002415,4]
[313217585,1706965831930,-9959.98060866,0.00024166,2]
[313217588,1706965831939,-9208.7721048,0.00024167,2]
[313217590,1706965831948,-169.777939,0.00024545,2]
[313217592,1706965831957,-1000.0,0.00024899,3]
[313217595,1706965831966,-1023.88339212,0.00024899,3]
[313217596,1706965831975,-653.59416934,0.00025,10]
[313217598,1706965831984,-2041.88584619,0.00025,2]
[313217600,1706965831994,-4397.71584247,0.00025,2]
[313217602,1706965832003,-1024.89626915,0.00025218,2]
[313217604,1706965832012,-20000.0,0.00025218,2]
[313217606,1706965832021,-869.18055187,0.00025297,2]
[313217608,1706965832029,-9032.02,0.00025308,3]
[313217609,1706965832038,-10838.42,0.00025316,3]
[313217610,1706965832047,-13006.1,0.00025318,3]
[313217611,1706965832056,-5811.09917229,0.00025326,2]
[313217637,1706965837975,-300.1600001,0.00025326,2]
[313217638,1706965838031,-7171.79412978,0.00025326,2]
[313217640,1706965838040,-303.83245252,0.00025326,2]
[313217642,1706965838049,-688.96127348,0.00025326,2]
[313217644,1706965838058,-565.60551711,0.00025326,2]
[313217645,1706965838068,-465.90513201,0.00025326,2]
[313217646,1706965838079,-326.04786116,0.00025326,2]
[313217647,1706965838090,-182.01363394,0.00025326,2]
[313217672,1706965841135,-539.25681353,0.00025326,2]
[313217675,1706965841147,-1319.23197364,0.00025326,2]
[313217677,1706965841157,-455.2446632,0.00025326,2]
[313217679,1706965841167,-1146.42440494,0.00025327,2]
[313217681,1706965841179,-711.24059704,0.00025327,2]
[313217683,1706965841188,-9827.09798228,0.00025328,2]
[313217685,1706965841200,-3178.44993692,0.00025328,2]
[313217688,1706965841210,-362.80838292,0.00025328,2]
[313217818,1706965844302,-4543.97683733,0.00025328,2]
[313218065,1706967032052,-155.01860223,0.00020239,4]
[313218067,1706967032062,-1200.7118793,0.00020239,2]
[313218069,1706967032071,-1017.12321481,0.00020239,2]
[313218071,1706967032081,-181.83441375,0.0002024,2]
[313218073,1706967032091,-1139.88048057,0.0002024,2]
[313218076,1706967032111,-2242.9765875,0.0002024,2]
[313218078,1706967032122,-21335.30851818,0.0002024,2]
[313218080,1706967032131,-155.01860223,0.00020473,2]
[313218082,1706967032141,-175.55375997,0.00020474,2]
[313218084,1706967032150,-272.593128,0.00020478,2]
[313218086,1706967032159,-169.777939,0.00020526,2]
[313218088,1706967032168,-158.95416117,0.00021684,2]
[313218090,1706967032177,-986.96517678,0.00021815,2]
[313218092,1706967032187,-5325.91794731,0.00021915,2]
[313218094,1706967032196,-166.666666,0.00021918,2]
[313218096,1706967032205,-426.88835692,0.00022,2]
[313218098,1706967032214,-3977.44618093,0.00022792,2]
[313218099,1706967032223,-978.95259375,0.00022793,2]
[313218101,1706967032232,-309.98450155,0.00022793,2]
[313218102,1706967032241,-158.95416115,0.00022892,2]
[313218103,1706967032250,-9959.98060866,0.00023,2]
[313218104,1706967032259,-169.339384,0.00023049,2]
[313218105,1706967032268,-166.666666,0.000232,2]
[313218106,1706967032277,-3424.92925858,0.00023228,2]
[313218107,1706967032286,-200.0,0.00023965,7]
[313218108,1706967032295,-2055.17614731,0.00024053,2]
[313218109,1706967032304,-8668.59935887,0.00024062,2]
[313218110,1706967032313,-158.95416115,0.00024099,2]
[313218111,1706967032322,-166.666666,0.00024482,2]
[313218112,1706967032331,-986.96517675,0.00024899,2]
[313218113,1706967032440,-165.16533338,0.00025207,2]
[313218114,1706967032450,-9326.54,0.00025307,3]
[313218115,1706967032465,-632.69615743,0.00025317,3]
[313218148,1706967038223,-10559.15384257,0.00025317,3]
[313218149,1706967038233,-1743.33360655,0.00025326,2]
[313218150,1706967038242,-326.04786116,0.00025326,2]
[313218151,1706967038251,-651.45454176,0.00025326,2]
[313218152,1706967038261,-1858.30574077,0.00025327,2]
[313218153,1706967038270,-20357.6460301,0.00025328,2]
[313218154,1706967038279,-11213.93803069,0.00025328,2]
[313218156,1706967038289,-3426.05084631,0.00025328,2]